fUST/lending_fUST_20240907
["ID","MTS","AMOUNT","RATE_DAILY","PERIOD"]
[337405766,1725644180803,-300.0,0.00019158,2]
[337405767,1725644180819,-158.0,0.00019158,2]
[337405768,1725644180830,-7746.85960936,0.00019158,2]
[337405769,1725644208044,953.27020719,0.00026,60]
[337405773,1725644745375,3533.49267958,0.000171,2]
[337406008,1725645038766,-665.95040224,0.00017459,2]
[337406009,1725645038861,-2334.04959776,0.00017459,2]
[337406010,1725645038872,-300.0,0.00017702,2]
[337406011,1725645038883,-300.0,0.00017702,2]
[337406012,1725645038894,-16587.22841944,0.00017703,2]
[337406032,1725645040866,-8302.77158056,0.00017703,2]
[337406033,1725645040876,-298.6761052,0.00017779,2]
[337406034,1725645040887,-250.0,0.00017905,2]
[337406035,1725645040898,-250.0,0.00017954,2]
[337406036,1725645040908,-250.0,0.00018003,2]
[337406037,1725645040919,-248.09036213,0.00018052,2]
[337406038,1725645040938,-1.90963787,0.00018052,2]
[337406039,1725645040948,-250.0,0.00018101,2]
[337406040,1725645040960,-688.52210427,0.00018148,2]
[337406041,1725645040970,-250.0,0.0001815,2]
[337406042,1725645040981,-250.0,0.00018199,2]
[337406043,1725645040991,-250.0,0.00018248,2]
[337406044,1725645041002,-250.0,0.00018298,2]
[337406045,1725645041012,-250.0,0.00018347,2]
[337406046,1725645041023,-250.0,0.00018396,2]
[337406047,1725645041033,-250.0,0.00018445,2]
[337406048,1725645041044,-250.0,0.00018494,2]
[337406049,1725645041055,-250.0,0.00018543,2]
[337406050,1725645041066,-250.0,0.00018592,2]
[337406051,1725645041076,-250.0,0.00018641,2]
[337406052,1725645041087,-250.0,0.0001869,2]
[337406053,1725645041097,-250.0,0.00018739,2]
[337406054,1725645041107,-250.0,0.00018789,2]
[337406055,1725645041119,-250.0,0.00018838,2]
[337406056,1725645041129,-208.135659,0.00019009,2]
[337406057,1725645041386,-306.0,0.00019009,2]
[337406058,1725645041396,-153.0,0.00019009,2]
[337406059,1725645041407,-153.0,0.00019009,2]
[337406060,1725645041416,-309.1335084,0.00019078,2]
[337406061,1725645041427,-150.112233,0.000191,2]
[337406062,1725645041439,-150.112233,0.000191,2]
[337406063,1725645041449,-150.112233,0.000191,2]
[337406064,1725645041460,-37945.7410627,0.00019128,2]
[337406065,1725645041470,-9121.66190699,0.00019128,2]
[337406066,1725645041480,-227674.446376,0.00019129,2]
[337406067,1725645041491,-100338.280977,0.00019129,2]
[337406068,1725645041506,-9121.66190699,0.00019132,2]
[337406069,1725645041515,-500.0,0.00019135,2]
[337406070,1725645041527,-500.0,0.00019135,2]
[337406071,1725645041540,-500.0,0.00019135,2]
[337406072,1725645041549,-500.0,0.00019135,2]
[337406073,1725645041558,-500.0,0.00019135,2]
[337406074,1725645041568,-500.0,0.00019135,2]
[337406075,1725645041580,-500.0,0.00019135,2]
[337406076,1725645041591,-500.0,0.00019135,2]
[337406077,1725645041600,-500.0,0.00019135,2]
[337406078,1725645041610,-500.0,0.00019135,2]
[337406079,1725645041620,-500.0,0.00019135,2]
[337406080,1725645041630,-500.0,0.00019135,2]
[337406081,1725645041640,-500.0,0.00019135,2]
[337406082,1725645041650,-500.0,0.00019135,2]
[337406083,1725645041659,-500.0,0.00019135,2]
[337406084,1725645041669,-500.0,0.00019135,2]
[337406085,1725645041679,-500.0,0.00019135,2]
[337406086,1725645041688,-500.0,0.00019135,2]
[337406087,1725645041698,-500.0,0.00019135,2]
[337406088,1725645041708,-517.04505663,0.00019135,2]
[337406089,1725645041719,-500.0,0.00019135,2]
[337406090,1725645041729,-500.0,0.00019135,2]
[337406091,1725645041742,-500.0,0.00019135,2]
[337406092,1725645041753,-500.0,0.00019135,2]
[337406093,1725645041763,-500.0,0.00019135,2]
[337406094,1725645041772,-500.0,0.00019135,2]
[337406095,1725645041784,-500.0,0.00019135,2]
[337406096,1725645041794,-500.0,0.00019135,2]
[337406097,1725645041804,-500.0,0.00019135,2]
[337406098,1725645041814,-500.0,0.00019135,2]
[337406099,1725645041825,-500.0,0.00019135,2]
[337406100,1725645041835,-500.0,0.00019135,2]
[337406101,1725645041847,-500.0,0.00019135,2]
[337406102,1725645041858,-500.0,0.00019135,2]
[337406103,1725645041868,-221.29282435,0.00019135,2]
[337406104,1725645041878,-500.0,0.00019135,2]
[337406105,1725645041887,-500.0,0.00019135,2]
[337406106,1725645041897,-500.0,0.00019135,2]
[337406107,1725645041907,-151.0,0.00019158,2]
[337406108,1725645041917,-151.0,0.00019158,2]
[337406109,1725645041928,-228.557136,0.00019158,2]
[337406110,1725645041938,-226.655077,0.00019158,2]
[337406111,1725645041948,-151.0,0.00019158,2]
[337406112,1725645041958,-151.0,0.00019158,2]
[337406113,1725645041968,-167.585204,0.00019158,2]
[337406114,1725645041978,-167.585204,0.00019158,2]
[337406115,1725645041988,-585.639444,0.00019158,2]
[337406116,1725645041998,-585.639444,0.00019158,2]
[337406117,1725645042008,-151.0,0.00019158,2]
[337406118,1725645042018,-151.0,0.00019158,2]
[337406119,1725645042027,-329.12457,0.00019158,2]
[337406120,1725645042038,-329.12457,0.00019158,2]
[337406121,1725645042048,-151.0,0.00019158,2]
[337406122,1725645042058,-193.552493,0.00019158,2]
[337406123,1725645042067,-151.0,0.00019158,2]
[337406124,1725645042078,-418.453678,0.00019158,2]
[337406125,1725645042088,-151.0,0.00019158,2]
[337406126,1725645042098,-418.453678,0.00019158,2]
[337406127,1725645042107,-151.0,0.00019158,2]
[337406128,1725645042116,-347.512909,0.00019158,2]
[337406129,1725645042126,-347.512909,0.00019158,2]
[337406130,1725645042135,-336.553146,0.00019158,2]
[337406131,1725645042144,-336.553146,0.00019158,2]
[337406132,1725645042156,-434.31147,0.00019158,2]
[337406133,1725645042166,-434.31147,0.00019158,2]
[337406134,1725645042175,-151.0,0.00019158,2]
[337406135,1725645042185,-151.0,0.00019158,2]
[337406136,1725645042195,-1402.628478,0.00019158,2]
[337406137,1725645042206,-1321.36038416,0.00019158,2]
[337406168,1725645043687,-81.26809384,0.00019158,2]
[337406170,1725645043698,-200.248912,0.00019158,2]
[337406172,1725645043708,-200.248912,0.00019158,2]
[337406173,1725645043718,-151.0,0.00019168,2]
[337406174,1725645043729,-151.0,0.00019168,2]
[337406175,1725645043740,-151.0,0.00019168,2]
[337406176,1725645043750,-151.0,0.00019168,2]
[337406177,1725645043761,-167.585204,0.00019168,2]
[337406178,1725645043770,-167.585204,0.00019168,2]
[337406179,1725645043781,-585.639444,0.00019168,2]
[337406180,1725645043795,-585.639444,0.00019168,2]
[337406181,1725645043806,-151.0,0.00019168,2]
[337406182,1725645043816,-664.903474,0.00019168,2]
[337406183,1725645043827,-664.903474,0.00019168,2]
[337406184,1725645043837,-436.441121,0.00019168,2]
[337406185,1725645043849,-329.12457,0.00019168,2]
[337406186,1725645043859,-151.0,0.00019168,2]
[337406187,1725645043869,-436.441121,0.00019168,2]
[337406188,1725645043878,-329.12457,0.00019168,2]
[337406189,1725645043888,-151.0,0.00019168,2]
[337406190,1725645043897,-37131.3774347,0.00019168,2]
[337406191,1725645043909,-311.69803547,0.00019168,2]
[337406192,1725645043921,-3185.90422101,0.00019168,2]
[337406199,1725645046693,-23222.65365772,0.00019168,2]
[337406200,1725645046703,-500.0,0.00019173,2]
[337406201,1725645046713,-500.0,0.00019173,2]
[337406202,1725645046723,-500.0,0.00019173,2]
[337406203,1725645046732,-170.5914481,0.00019173,2]
[337406204,1725645046743,-500.53621081,0.00019173,2]
[337406205,1725645046796,-500.0,0.00019173,2]
[337406206,1725645046806,-158.63332089,0.00019173,2]
[337406207,1725645046816,-3392.66874587,0.00019177,2]
[337406208,1725645046826,-151.0,0.00019177,2]
[337406209,1725645046837,-273.251451,0.00019177,2]
[337406210,1725645046849,-273.251451,0.00019177,2]
[337406211,1725645046860,-151.0,0.00019177,2]
[337406212,1725645046870,-984.572274,0.00019177,2]
[337406213,1725645046879,-984.572274,0.00019177,2]
[337406214,1725645046889,-151.0,0.00019177,2]
[337406215,1725645046898,-395.008551,0.00019177,2]
[337406216,1725645046908,-4523.55832783,0.00019177,2]
[337406217,1725645046917,-151.0,0.00019177,2]
[337406218,1725645046927,-500.0,0.00019177,2]
[337406219,1725645046936,-191.12813093,0.00019177,2]
[337406220,1725645046947,-500.0,0.00019177,2]
[337406221,1725645046958,-251.72905937,0.00019177,2]
[337406222,1725645046968,-500.0,0.00019177,2]
[337406223,1725645046977,-500.0,0.00019177,2]
[337406224,1725645046988,-250.0,0.00019177,2]
[337406225,1725645046999,-242.98095399,0.00019177,2]
[337406226,1725645047009,-303.45684617,0.00019177,2]
[337406227,1725645047019,-500.0,0.00019177,2]
[337406228,1725645047030,-500.0,0.00019177,2]
[337406229,1725645047042,-500.0,0.00019177,2]
[337406230,1725645047052,-500.0,0.00019177,2]
[337406231,1725645047061,-500.0,0.00019177,2]
[337406232,1725645047070,-500.0,0.00019177,2]
[337406233,1725645047079,-500.0,0.00019177,2]
[337406234,1725645047089,-500.0,0.00019177,2]
[337406235,1725645047098,-500.0,0.00019177,2]
[337406236,1725645047109,-500.0,0.00019177,2]
[337406237,1725645047120,-352.15851073,0.00019177,2]
[337406238,1725645047131,-500.0,0.00019177,2]
[337406239,1725645047143,-500.0,0.00019177,2]
[337406240,1725645047154,-500.0,0.00019177,2]
[337406241,1725645047164,-500.0,0.00019177,2]
[337406242,1725645047173,-600.0,0.00019177,2]
[337406243,1725645047183,-500.0,0.00019178,2]
[337406244,1725645047192,-151.0,0.00019178,2]
[337406245,1725645047201,-151.0,0.00019178,2]
[337406246,1725645047212,-152.559391,0.00019178,2]
[337406247,1725645047222,-500.0,0.00019178,2]
[337406248,1725645047231,-500.0,0.00019178,2]
[337406249,1725645047240,-500.0,0.00019178,2]
[337406250,1725645047250,-500.0,0.00019178,2]
[337406251,1725645047260,-302.19338606,0.00019178,2]
[337406252,1725645047269,-529.30730717,0.00019178,2]
[337406253,1725645047278,-500.0,0.00019178,2]
[337406254,1725645047289,-500.0,0.00019178,2]
[337406255,1725645047299,-500.0,0.00019178,2]
[337406256,1725645047308,-500.0,0.00019178,2]
[337406257,1725645047318,-500.0,0.00019178,2]
[337406258,1725645047327,-500.0,0.00019178,2]
[337406259,1725645047338,-151.0,0.00019178,2]
[337406260,1725645047348,-151.0,0.00019178,2]
[337406261,1725645047363,-151.0,0.00019178,2]
[337406262,1725645047372,-151.0,0.00019178,2]
[337406263,1725645047381,-500.0,0.00019178,2]
[337406264,1725645047394,-500.0,0.00019178,2]
[337406265,1725645047403,-500.0,0.00019178,2]
[337406266,1725645047413,-587.44,0.00019178,2]
[337406267,1725645047423,-309.85047908,0.00019178,2]
[337406268,1725645047435,-500.0,0.00019178,2]
[337406269,1725645047447,-500.0,0.00019178,2]
[337406270,1725645047457,-500.0,0.00019178,2]
[337406271,1725645047466,-500.0,0.00019178,2]
[337406272,1725645047476,-500.0,0.00019178,2]
[337406273,1725645047485,-500.0,0.00019178,2]
[337406274,1725645047495,-500.0,0.00019178,2]
[337406275,1725645047508,-500.0,0.00019178,2]
[337406276,1725645047517,-500.0,0.00019178,2]
[337406277,1725645047528,-500.0,0.00019178,2]
[337406278,1725645047541,-487.44850553,0.00019178,2]
[337406279,1725645047551,-500.0,0.00019178,2]
[337406280,1725645047560,-500.0,0.00019178,2]
[337406281,1725645047570,-500.0,0.00019178,2]
[337406282,1725645047581,-500.0,0.00019178,2]
[337406283,1725645047590,-500.0,0.00019178,2]
[337406284,1725645047600,-500.0,0.00019178,2]
[337406285,1725645047610,-500.0,0.00019178,2]
[337406286,1725645047620,-500.0,0.00019178,2]
[337406287,1725645047630,-453.07159456,0.00019178,2]
[337406288,1725645047641,-500.0,0.00019178,2]
[337406289,1725645047654,-500.0,0.00019178,2]
[337406290,1725645047664,-500.0,0.00019178,2]
[337406291,1725645047673,-500.0,0.00019178,2]
[337406292,1725645047682,-500.0,0.00019178,2]
[337406293,1725645047691,-500.0,0.00019178,2]
[337406294,1725645047700,-500.0,0.00019178,2]
[337406295,1725645047709,-339.18703988,0.00019178,2]
[337406296,1725645047719,-342.44012142,0.00019178,2]
[337406297,1725645047730,-500.0,0.00019178,2]
[337406298,1725645047739,-500.0,0.00019178,2]
[337406299,1725645047748,-500.0,0.00019178,2]
[337406300,1725645047758,-500.0,0.00019178,2]
[337406301,1725645047767,-500.0,0.00019178,2]
[337406302,1725645047776,-500.0,0.00019178,2]
[337406303,1725645047786,-500.0,0.00019178,2]
[337406304,1725645047798,-500.0,0.00019178,2]
[337406305,1725645047808,-500.0,0.00019178,2]
[337406306,1725645047818,-500.0,0.00019178,2]
[337406307,1725645047827,-500.0,0.00019178,2]
[337406308,1725645047836,-500.0,0.00019178,2]
[337406309,1725645047846,-500.0,0.00019178,2]
[337406310,1725645047855,-500.0,0.00019178,2]
[337406311,1725645047864,-500.0,0.00019178,2]
[337406312,1725645047873,-500.0,0.00019178,2]
[337406313,1725645047884,-500.0,0.00019178,2]
[337406314,1725645047893,-500.0,0.00019178,2]
[337406315,1725645047903,-260.8276655,0.00019178,2]
[337406316,1725645047913,-500.0,0.00019178,2]
[337406317,1725645047922,-500.0,0.00019178,2]
[337406318,1725645047933,-500.0,0.00019178,2]
[337406319,1725645047942,-500.0,0.00019178,2]
[337406320,1725645047951,-512.5094282,0.00019178,2]
[337406321,1725645047960,-500.0,0.00019178,2]
[337406322,1725645047970,-500.0,0.00019178,2]
[337406323,1725645047980,-500.0,0.00019178,2]
[337406324,1725645047989,-151.0,0.00019178,2]
[337406325,1725645047998,-500.0,0.00019178,2]
[337406326,1725645048008,-151.671406,0.00019178,2]
[337406327,1725645048017,-500.0,0.00019178,2]
[337406328,1725645048027,-500.0,0.00019178,2]
[337406329,1725645048036,-500.0,0.00019178,2]
[337406330,1725645048050,-500.0,0.00019178,2]
[337406331,1725645048059,-503.76702713,0.00019178,2]
[337406332,1725645048069,-527.45356,0.00019178,2]
[337406333,1725645048078,-526.98523926,0.00019178,2]
[337406334,1725645048087,-500.0,0.00019178,2]
[337406335,1725645048096,-529.7100786,0.00019178,2]
[337406336,1725645048105,-500.0,0.00019178,2]
[337406337,1725645048115,-500.0,0.00019178,2]
[337406338,1725645048124,-500.0,0.00019178,2]
[337406339,1725645048133,-500.0,0.00019178,2]
[337406340,1725645048142,-500.0,0.00019178,2]
[337406341,1725645048151,-500.0,0.00019178,2]
[337406342,1725645048160,-500.0,0.00019178,2]
[337406343,1725645048170,-506.61787541,0.00019178,2]
[337406344,1725645048180,-500.0,0.00019178,2]
[337406345,1725645048189,-169.1907269,0.00019178,2]
[337406346,1725645048198,-500.0,0.00019178,2]
[337406347,1725645048207,-500.0,0.00019178,2]
[337406348,1725645048216,-500.0,0.00019178,2]
[337406349,1725645048225,-500.0,0.00019178,2]
[337406350,1725645048235,-500.0,0.00019178,2]
[337406351,1725645048244,-500.0,0.00019178,2]
[337406352,1725645048253,-500.0,0.00019178,2]
[337406353,1725645048262,-249.05081,0.00019178,2]
[337406354,1725645048272,-500.0,0.00019178,2]
[337406355,1725645048281,-411.73552016,0.00019178,2]
[337406356,1725645048296,-500.0,0.00019178,2]
[337406357,1725645048306,-500.0,0.00019178,2]
[337406358,1725645048315,-500.0,0.00019178,2]
[337406359,1725645048324,-500.0,0.00019178,2]
[337406360,1725645048334,-500.0,0.00019178,2]
[337406361,1725645048343,-740.69,0.00019178,2]
[337406362,1725645048352,-500.0,0.00019178,2]
[337406363,1725645048362,-151.0,0.00019178,2]
[337406364,1725645048371,-228.358006,0.00019178,2]
[337406365,1725645048385,-500.0,0.00019178,2]
[337406366,1725645048395,-500.0,0.00019178,2]
[337406367,1725645048404,-214.78783288,0.00019178,2]
[337406368,1725645048414,-500.0,0.00019178,2]
[337406369,1725645048426,-321.06228162,0.00019178,2]
[337406370,1725645048436,-500.0,0.00019178,2]
[337406371,1725645048448,-500.0,0.00019178,2]
[337406372,1725645048457,-500.0,0.00019178,2]
[337406373,1725645048467,-500.0,0.00019178,2]
[337406374,1725645048476,-500.0,0.00019178,2]
[337406375,1725645048486,-500.0,0.00019178,2]
[337406376,1725645048497,-500.0,0.00019178,2]
[337406377,1725645048509,-550.08989126,0.00019178,2]
[337406378,1725645048518,-500.0,0.00019178,2]
[337406379,1725645048528,-500.0,0.00019178,2]
[337406380,1725645048539,-500.0,0.00019178,2]
[337406381,1725645048551,-500.0,0.00019178,2]
[337406382,1725645048560,-500.0,0.00019178,2]
[337406383,1725645048571,-500.0,0.00019178,2]
[337406384,1725645048583,-500.0,0.00019178,2]
[337406385,1725645048593,-500.0,0.00019178,2]
[337406386,1725645048603,-154.88231,0.00019178,2]
[337406387,1725645048613,-500.0,0.00019178,2]
[337406388,1725645048624,-500.0,0.00019178,2]
[337406389,1725645048633,-500.0,0.00019178,2]
[337406390,1725645048644,-500.0,0.00019178,2]
[337406391,1725645048654,-500.0,0.00019178,2]
[337406392,1725645048664,-500.0,0.00019178,2]
[337406393,1725645048674,-500.0,0.00019178,2]
[337406394,1725645048684,-582.74,0.00019178,2]
[337406395,1725645048693,-500.0,0.00019178,2]
[337406396,1725645048704,-500.0,0.00019178,2]
[337406397,1725645048713,-500.0,0.00019178,2]
[337406398,1725645048722,-500.0,0.00019178,2]
[337406399,1725645048732,-500.0,0.00019178,2]
[337406400,1725645048742,-500.0,0.00019178,2]
[337406401,1725645048752,-500.0,0.00019178,2]
[337406402,1725645048762,-500.0,0.00019178,2]
[337406403,1725645048773,-500.0,0.00019178,2]
[337406404,1725645048782,-199.2,0.00019178,2]
[337406405,1725645048794,-500.0,0.00019178,2]
[337406406,1725645048803,-500.0,0.00019178,2]
[337406407,1725645048813,-500.0,0.00019178,2]
[337406408,1725645048823,-500.0,0.00019178,2]
[337406409,1725645048833,-507.10316306,0.00019178,2]
[337406410,1725645048843,-500.0,0.00019178,2]
[337406411,1725645048853,-500.0,0.00019178,2]
[337406412,1725645048863,-500.0,0.00019178,2]
[337406413,1725645048873,-500.0,0.00019178,2]
[337406414,1725645048883,-500.0,0.00019178,2]
[337406415,1725645048893,-500.0,0.00019178,2]
[337406416,1725645048903,-500.0,0.00019178,2]
[337406417,1725645048914,-500.0,0.00019178,2]
[337406418,1725645048924,-500.0,0.00019178,2]
[337406419,1725645048934,-500.0,0.00019178,2]
[337406420,1725645048944,-500.0,0.00019178,2]
[337406421,1725645048954,-500.0,0.00019178,2]
[337406422,1725645048963,-518.16552945,0.00019178,2]
[337406423,1725645048973,-555.9844036,0.00019178,2]
[337406424,1725645048983,-500.0,0.00019178,2]
[337406425,1725645048995,-164.15737138,0.00019178,2]
[337406426,1725645049005,-500.0,0.00019178,2]
[337406427,1725645049016,-509.94963974,0.00019178,2]
[337406428,1725645049025,-500.0,0.00019178,2]
[337406429,1725645049036,-500.0,0.00019178,2]
[337406430,1725645049047,-500.0,0.00019178,2]
[337406431,1725645049056,-516.46904769,0.00019178,2]
[337406432,1725645049065,-500.0,0.00019178,2]
[337406433,1725645049074,-500.0,0.00019178,2]
[337406434,1725645049084,-500.0,0.00019178,2]
[337406435,1725645049093,-554.03,0.00019178,2]
[337406436,1725645049102,-500.0,0.00019178,2]
[337406437,1725645049112,-500.0,0.00019178,2]
[337406438,1725645049122,-500.0,0.00019178,2]
[337406439,1725645049132,-500.0,0.00019178,2]
[337406440,1725645049141,-500.0,0.00019178,2]
[337406441,1725645049151,-500.0,0.00019178,2]
[337406442,1725645049160,-536.94,0.00019178,2]
[337406443,1725645049170,-500.0,0.00019178,2]
[337406444,1725645049180,-500.0,0.00019178,2]
[337406445,1725645049189,-500.0,0.00019178,2]
[337406446,1725645049199,-500.0,0.00019178,2]
[337406447,1725645049208,-500.0,0.00019178,2]
[337406448,1725645049217,-512.05414438,0.00019178,2]
[337406449,1725645049228,-500.0,0.00019178,2]
[337406450,1725645049237,-500.0,0.00019178,2]
[337406451,1725645049246,-500.0,0.00019178,2]
[337406452,1725645049256,-500.0,0.00019178,2]
[337406453,1725645049265,-500.0,0.00019178,2]
[337406454,1725645049274,-500.0,0.00019178,2]
[337406455,1725645049283,-500.0,0.00019178,2]
[337406456,1725645049296,-170.98,0.00019178,2]
[337406457,1725645049305,-500.0,0.00019178,2]
[337406458,1725645049314,-500.0,0.00019178,2]
[337406459,1725645049323,-500.0,0.00019178,2]
[337406460,1725645049333,-500.0,0.00019178,2]
[337406461,1725645049342,-500.0,0.00019178,2]
[337406462,1725645049352,-500.0,0.00019178,2]
[337406463,1725645049362,-500.0,0.00019178,2]
[337406464,1725645049372,-500.0,0.00019178,2]
[337406465,1725645049384,-500.0,0.00019178,2]
[337406466,1725645049393,-219.21709981,0.00019178,2]
[337406467,1725645049402,-500.0,0.00019178,2]
[337406468,1725645049412,-500.0,0.00019178,2]
[337406469,1725645049422,-500.0,0.00019178,2]
[337406470,1725645049433,-1150.68,0.00019178,2]
[337406471,1725645049443,-500.0,0.00019178,2]
[337406472,1725645049452,-500.0,0.00019178,2]
[337406473,1725645049462,-500.0,0.00019178,2]
[337406474,1725645049472,-500.0,0.00019178,2]
[337406475,1725645049482,-500.0,0.00019178,2]
[337406476,1725645049492,-464.94776295,0.00019178,2]
[337406477,1725645049504,-502.41051816,0.00019178,2]
[337406478,1725645049514,-151.0,0.00019178,2]
[337406479,1725645049525,-151.0,0.00019178,2]
[337406480,1725645049534,-151.0,0.00019178,2]
[337406481,1725645049549,-500.0,0.00019178,2]
[337406482,1725645049559,-500.0,0.00019178,2]
[337406483,1725645049568,-151.0,0.00019178,2]
[337406484,1725645049580,-229.139933,0.00019178,2]
[337406485,1725645049590,-500.0,0.00019178,2]
[337406486,1725645049599,-402.81954698,0.00019178,2]
[337406571,1725646231749,-3900.82844223,0.00018115,2]
[337406572,1725646231775,-283.43650347,0.00018115,2]
[337406573,1725646231784,-308.43749623,0.00019,14]
[337406701,1725646240126,-691.56250377,0.00019,14]
[337406703,1725646240135,-278.22015756,0.00019078,2]
[337406705,1725646240145,-300.0,0.00019156,2]
[337406706,1725646240155,-24664.7316908,0.00019157,2]
[337406708,1725646240164,-3226.93793901,0.00019157,2]
[337406761,1725646242828,-6181.23,0.00019157,2]
[337406899,1725646333539,235.28992691,0.00027,120]
[337407005,1725647432014,-300.0,0.0001748,2]
[337407007,1725647432024,-2794.42201147,0.00017481,2]
[337407008,1725647432038,-2680.0,0.00017481,2]
[337407023,1725647438097,-810.98493516,0.00017481,2]
[337407037,1725647440122,-5464.1957838,0.00017481,2]
[337407038,1725647440142,-13150.39726957,0.00017481,2]
[337407039,1725647440153,-250.0,0.00017878,2]
[337407040,1725647440166,-250.0,0.00017927,2]
[337407041,1725647440175,-150.0,0.00017935,2]
[337407042,1725647440186,-250.0,0.00017976,2]
[337407043,1725647440196,-250.0,0.00018025,2]
[337407044,1725647440207,-250.0,0.00018074,2]
[337407045,1725647440217,-250.0,0.00018123,2]
[337407046,1725647440226,-1189.249557,0.00018145,2]
[337407047,1725647440236,-250.0,0.00018172,2]
[337407048,1725647440246,-250.0,0.00018221,2]
[337407049,1725647440256,-250.0,0.0001827,2]
[337407050,1725647440265,-250.0,0.00018319,2]
[337407051,1725647440275,-250.0,0.00018368,2]
[337407052,1725647440284,-250.0,0.00018417,2]
[337407053,1725647440293,-250.0,0.00018466,2]
[337407054,1725647440536,-153.0,0.00018478,2]
[337407055,1725647440550,-153.0,0.00018478,2]
[337407056,1725647440560,-153.0,0.00018478,2]
[337407057,1725647440569,-153.0,0.000185,2]
[337407058,1725647440579,-250.0,0.00018515,2]
[337407059,1725647440590,-250.0,0.00018564,2]
[337407060,1725647440604,-250.0,0.00018613,2]
[337407061,1725647440613,-1189.249557,0.00018645,2]
[337407062,1725647440622,-250.0,0.00018662,2]
[337407063,1725647440632,-250.0,0.00018711,2]
[337407064,1725647440641,-150.0,0.00018714,2]
[337407065,1725647440650,-250.0,0.00018761,2]
[337407066,1725647440659,-250.0,0.0001881,2]
[337407067,1725647440669,-6120.88150363,0.00019067,2]
[337407068,1725647440678,-250.39814175,0.00019067,2]
[337407069,1725647440688,-150.112233,0.000191,2]
[337407070,1725647440697,-150.112233,0.000191,2]
[337407071,1725647440707,-150.112233,0.000191,2]
[337407072,1725647440716,-275.175023,0.000191,2]
[337407073,1725647440726,-1189.249557,0.00019145,2]
[337407074,1725647440736,-7586.39422885,0.00019156,2]
[337407151,1725648388067,-300.0,0.000198,8]
[337407152,1725648388095,-2438.7090537,0.0001999,7]
[337407153,1725648388165,-1000.0,0.00021,21]
[337407154,1725648388202,-331.498477,0.000213,9]
[337407155,1725648388261,-1256.68,0.000224,14]
[337407156,1725648388300,-1000.0,0.00023,23]
[337407157,1725648388349,-500.0,0.00024,8]
[337407158,1725648388379,-1256.68,0.000243,14]
[337407159,1725648388411,-1000.0,0.00024657,7]
[337407160,1725648388441,-1000.0,0.00024657,7]
[337407161,1725648388468,-1000.0,0.00024657,7]
[337407162,1725648388497,-1000.0,0.00024657,7]
[337407163,1725648388523,-1000.0,0.00024657,7]
[337407164,1725648388550,-325.2338444,0.00024657,7]
[337407165,1725648388579,-1264.426607,0.00024658,7]
[337407166,1725648388606,-1264.426607,0.00024658,7]
[337407167,1725648388634,-1264.426607,0.00024658,7]
[337407168,1725648388661,-1264.426607,0.00024658,7]
[337407169,1725648388688,-1264.426607,0.00024658,7]
[337407170,1725648388714,-1264.426607,0.00024658,7]
[337407171,1725648388746,-1264.426605,0.00024658,7]